fUST/lending_fUST_20250516
["ID","MTS","AMOUNT","RATE_DAILY","PERIOD"]
[361252531,1747393843731,-247.97296164,0.00013698,2]
[361253036,1747394384090,325.44,0.000136,120]
[361253037,1747394393927,325.44,0.000136,120]
[361253040,1747394702603,191.671567,0.00027397,120]
[361253042,1747394911638,500.0,0.00027397,120]
[361253089,1747395031743,-859.95,0.00011962,14]
[361253098,1747395037750,-4140.05,0.00011962,14]
[361253099,1747395037760,-252.44,0.00012329,2]
[361253100,1747395037770,-13539.2080773,0.00012542,2]
[361253101,1747395037780,-1775.7568469,0.00012876,2]
[361253102,1747395037789,-325.44,0.00013,5]
[361253103,1747395037799,-325.44,0.00013,5]
[361253104,1747395037808,-300.0,0.00013599,2]
[361253105,1747395037818,-542.41925,0.000136,5]
[361253106,1747395037827,-542.41925,0.000136,5]
[361253107,1747395037837,-542.41925,0.000136,5]
[361253108,1747395037846,-542.41925,0.000136,5]
[361253109,1747395037855,-153.0,0.000136,2]
[361253110,1747395037864,-153.0,0.000136,2]
[361253111,1747395037874,-153.0,0.000136,2]
[361253112,1747395037885,-65.39968628,0.000136,2]
[361253113,1747395037897,-87.60031372,0.000136,2]
[361253114,1747395037906,-153.0,0.000136,2]
[361253115,1747395037916,-500.0,0.00013697,2]
[361253116,1747395037925,-117.54063628,0.00013697,2]
[361253117,1747395037937,-382.45936372,0.00013697,2]
[361253118,1747395037946,-203.64228354,0.00013697,2]
[361253119,1747395037957,-361.38164747,0.00013697,2]
[361253120,1747395037967,-500.0,0.00013697,2]
[361253121,1747395037977,-287.1125841,0.00013697,2]
[361253122,1747395037986,-450.0,0.00013698,2]
[361253123,1747395037995,-450.0,0.00013698,2]
[361253124,1747395038004,-450.0,0.00013698,2]
[361253125,1747395038014,-450.0,0.00013698,2]
[361253126,1747395038023,-450.0,0.00013698,2]
[361253127,1747395038032,-450.0,0.00013698,2]
[361253128,1747395038042,-450.0,0.00013698,2]
[361253129,1747395038051,-454.86700228,0.00013698,2]
[361253130,1747395038061,-450.0,0.00013698,2]
[361253131,1747395038071,-250.0,0.00013698,2]
[361253132,1747395038081,-450.0,0.00013698,2]
[361253133,1747395038090,-450.0,0.00013698,2]
[361253134,1747395038099,-450.0,0.00013698,2]
[361253135,1747395038108,-364.7330764,0.00013698,2]
[361253199,1747395040174,-5000.0,0.00011842,14]
[361253201,1747395040183,-85.2669236,0.00013698,2]
[361253203,1747395040192,-450.0,0.00013698,2]
[361253205,1747395040201,-450.0,0.00013698,2]
[361253207,1747395040211,-450.0,0.00013698,2]
[361253209,1747395040219,-450.0,0.00013698,2]
[361253211,1747395040229,-450.0,0.00013698,2]
[361253213,1747395040239,-400.0,0.00013698,2]
[361253215,1747395040248,-450.0,0.00013698,2]
[361253217,1747395040257,-250.0,0.00013698,2]
[361253219,1747395040266,-450.0,0.00013698,2]
[361253221,1747395040275,-450.0,0.00013698,2]
[361253223,1747395040285,-450.0,0.00013698,2]
[361253225,1747395040294,-450.0,0.00013698,2]
[361253227,1747395040303,-450.0,0.00013698,2]
[361253229,1747395040312,-450.0,0.00013698,2]
[361253231,1747395040321,-450.0,0.00013698,2]
[361253232,1747395040331,-450.0,0.00013698,2]
[361253233,1747395040340,-450.0,0.00013698,2]
[361253235,1747395040349,-450.0,0.00013698,2]
[361253237,1747395040358,-450.0,0.00013698,2]
[361253239,1747395040367,-218.09464831,0.00013698,2]
[361253241,1747395040377,-450.0,0.00013698,2]
[361253243,1747395040386,-450.0,0.00013698,2]
[361253244,1747395040395,-450.0,0.00013698,2]
[361253245,1747395040405,-450.0,0.00013698,2]
[361253246,1747395040414,-450.0,0.00013698,2]
[361253247,1747395040423,-450.0,0.00013698,2]
[361253248,1747395040433,-454.99217898,0.00013698,2]
[361253250,1747395040442,-450.0,0.00013698,2]
[361253252,1747395040451,-450.0,0.00013698,2]
[361253254,1747395040460,-450.0,0.00013698,2]
[361253256,1747395040470,-450.0,0.00013698,2]
[361253257,1747395040480,-450.0,0.00013698,2]
[361253259,1747395040489,-450.0,0.00013698,2]
[361253261,1747395040498,-450.0,0.00013698,2]
[361253263,1747395040507,-450.0,0.00013698,2]
[361253265,1747395040517,-450.0,0.00013698,2]
[361253267,1747395040526,-450.0,0.00013698,2]
[361253269,1747395040536,-450.0,0.00013698,2]
[361253271,1747395040545,-450.0,0.00013698,2]
[361253273,1747395040555,-2299.54,0.00013698,2]
[361253275,1747395040564,-450.0,0.00013698,2]
[361253277,1747395040573,-450.0,0.00013698,2]
[361253279,1747395040583,-2867.28,0.00013698,2]
[361253280,1747395040767,-468.06,0.00013698,2]
[361253282,1747395040777,-927.43,0.00013698,2]
[361253284,1747395040786,-586.06,0.00013698,2]
[361253286,1747395040796,-450.0,0.00013698,2]
[361253288,1747395040805,-2050.53,0.00013698,2]
[361253290,1747395040815,-400.0,0.00013698,2]
[361253291,1747395040824,-450.0,0.00013698,2]
[361253292,1747395040833,-1159.29,0.00013698,2]
[361253293,1747395040843,-450.0,0.00013698,2]
[361253294,1747395040852,-450.0,0.00013698,2]
[361253295,1747395040862,-490.27,0.00013698,2]
[361253296,1747395040871,-450.0,0.00013698,2]
[361253297,1747395040880,-500.19557937,0.00013698,2]
[361253298,1747395040890,-450.0,0.00013698,2]
[361253299,1747395040899,-450.0,0.00013698,2]
[361253300,1747395040908,-832.83,0.00013698,2]
[361253301,1747395040918,-450.0,0.00013698,2]
[361253302,1747395040927,-926.56,0.00013698,2]
[361253303,1747395040936,-450.0,0.00013698,2]
[361253304,1747395040945,-450.0,0.00013698,2]
[361253305,1747395040954,-450.0,0.00013698,2]
[361253306,1747395040963,-450.0,0.00013698,2]
[361253307,1747395040972,-450.0,0.00013698,2]
[361253308,1747395040981,-450.0,0.00013698,2]
[361253309,1747395040991,-1353.3,0.00013698,2]
[361253310,1747395041000,-450.0,0.00013698,2]
[361253311,1747395041010,-450.0,0.00013698,2]
[361253312,1747395041019,-716.13,0.00013698,2]
[361253313,1747395041028,-583.77,0.00013698,2]
[361253314,1747395041038,-400.0,0.00013698,2]
[361253315,1747395041047,-439.30617727,0.00013698,2]
[361253316,1747395041057,-476.49,0.00013698,2]
[361253317,1747395041067,-450.0,0.00013698,2]
[361253318,1747395041077,-450.0,0.00013698,2]
[361253319,1747395041086,-450.0,0.00013698,2]
[361253320,1747395041095,-450.0,0.00013698,2]
[361253321,1747395041105,-450.0,0.00013698,2]
[361253322,1747395041114,-450.0,0.00013698,2]
[361253323,1747395041123,-901.96,0.00013698,2]
[361253324,1747395041132,-450.0,0.00013698,2]
[361253325,1747395041141,-450.0,0.00013698,2]
[361253326,1747395041151,-450.0,0.00013698,2]
[361253327,1747395041160,-533.66,0.00013698,2]
[361253328,1747395041169,-450.0,0.00013698,2]
[361253329,1747395041178,-450.0,0.00013698,2]
[361253330,1747395041187,-450.0,0.00013698,2]
[361253331,1747395041196,-450.0,0.00013698,2]
[361253332,1747395041205,-492.02,0.00013698,2]
[361253333,1747395041214,-450.0,0.00013698,2]
[361253334,1747395041224,-450.0,0.00013698,2]
[361253335,1747395041233,-736.89,0.00013698,2]
[361253336,1747395041242,-315.34501806,0.00013698,2]
[361253337,1747395041251,-668.745335,0.00013699,2]
[361253338,1747395041261,-153.0,0.000137,2]
[361253339,1747395041270,-153.0,0.000137,2]
[361253340,1747395041279,-160.0,0.00013746,2]
[361253341,1747395041288,-160.0,0.00013746,2]
[361253342,1747395041298,-12631.88158148,0.00013746,2]
[361253343,1747395041307,-422.39640784,0.00013746,2]
[361253344,1747395041317,-212.26722696,0.00013746,2]
[361253345,1747395041327,-160.0,0.00013746,2]
[361253346,1747395041336,-160.0,0.00013746,2]
[361253347,1747395041345,-998.24360331,0.00013746,2]
[361253348,1747395041355,-160.0,0.00013746,2]
[361253349,1747395041365,-160.0,0.00013746,2]
[361253350,1747395041374,-153.0,0.000138,2]
[361253351,1747395041383,-450.0,0.00013835,2]
[361253352,1747395041393,-450.0,0.00013835,2]
[361253353,1747395041402,-450.0,0.00013835,2]
[361253354,1747395041411,-450.0,0.00013835,2]
[361253355,1747395041421,-450.0,0.00013835,2]
[361253356,1747395041430,-450.0,0.00013835,2]
[361253357,1747395041440,-450.0,0.00013835,2]
[361253358,1747395041451,-450.0,0.00013835,2]
[361253359,1747395041460,-450.0,0.00013835,2]
[361253360,1747395041469,-321.42531951,0.00013835,2]
[361253401,1747395083681,7994.15455482,0.00027397,120]
[361253406,1747395745269,500.0,0.00027397,120]
[361253407,1747395750134,191.671567,0.00027397,120]
[361253408,1747395751516,500.0,0.00027397,120]
[361253420,1747396181317,217.13182921,0.00027397,120]
[361253424,1747396232046,-5000.0,0.00012445,14]
[361253425,1747396232060,-300.0,0.00012675,2]
[361253426,1747396232070,-300.0,0.00012676,2]
[361253427,1747396232080,-300.0,0.00012676,2]
[361253428,1747396232090,-1200.0,0.00012676,2]
[361253429,1747396232099,-18685.33577026,0.00012677,2]
[361253453,1747396237989,-2101.11184565,0.00012677,2]
[361253454,1747396238002,-4113.55238409,0.00012677,2]
[361253455,1747396238012,-1094.7037603,0.00012698,2]
[361253456,1747396238021,-500.0,0.00012701,2]
[361253457,1747396238030,-182.97596201,0.000129,2]
[361253458,1747396238040,-182.97596199,0.00013365,2]
[361253459,1747396238049,-352.54557753,0.00013697,2]
[361253460,1747396238058,-506.55861871,0.00013697,2]
[361253461,1747396238068,-450.0,0.00013698,2]
[361253462,1747396238077,-7.44188963,0.00013698,2]
[361253463,1747396238090,-442.55811037,0.00013698,2]
[361253464,1747396238100,-559.27,0.00013698,2]
[361253465,1747396238109,-450.0,0.00013698,2]
[361253466,1747396238119,-299.7152588,0.00013698,2]
[361253467,1747396238128,-450.0,0.00013698,2]
[361253468,1747396238137,-450.0,0.00013698,2]
[361253469,1747396238150,-450.0,0.00013698,2]
[361253470,1747396238161,-400.0,0.00013698,2]
[361253471,1747396238172,-387.75665333,0.00013698,2]
[361254091,1747396750206,191.671567,0.00027397,120]
[361254094,1747397379735,160.0,0.00027397,120]
[361254100,1747397432383,-5000.0,0.0001208,14]
[361254102,1747397432392,-176.627213,0.00012575,2]
[361254104,1747397432402,-151.85898,0.00012575,2]
[361254106,1747397432412,-250.0,0.00013265,2]
[361254108,1747397432421,-182.97596199,0.00013598,2]
[361254110,1747397432430,-151.0,0.0001368,2]
[361254112,1747397432439,-681.6502685,0.0001368,4]
[361254114,1747397432449,-1200.0,0.00013696,2]
[361254116,1747397432458,-482.7826615,0.00013697,2]
[361254118,1747397432468,-300.0,0.00013697,2]
[361254120,1747397432478,-450.0,0.00013698,2]
[361254122,1747397432488,-400.0,0.00013698,2]
[361254124,1747397432497,-450.0,0.00013698,2]
[361254126,1747397432506,-450.0,0.00013698,2]
[361254128,1747397432516,-450.0,0.00013698,2]
[361254130,1747397432526,-1000.0,0.00013698,2]
[361254135,1747397432564,-450.0,0.00013698,2]
[361254137,1747397432574,-450.0,0.00013698,2]
[361254139,1747397432584,-517.01299434,0.00013698,2]
[361254141,1747397432593,-450.0,0.00013698,2]
[361254143,1747397432603,-450.0,0.00013698,2]
[361254145,1747397432613,-450.0,0.00013698,2]
[361254147,1747397432622,-450.0,0.00013698,2]
[361254149,1747397432631,-427.39876557,0.00013698,2]
[361254151,1747397432641,-400.0,0.00013698,2]
[361254153,1747397432650,-450.0,0.00013698,2]
[361254155,1747397432660,-450.0,0.00013698,2]
[361254157,1747397432669,-450.0,0.00013698,2]
[361254159,1747397432679,-450.0,0.00013698,2]
[361254161,1747397432688,-450.0,0.00013698,2]
[361254163,1747397432698,-450.0,0.00013698,2]
[361254165,1747397432708,-450.0,0.00013698,2]
[361254167,1747397432718,-450.0,0.00013698,2]
[361254169,1747397432727,-450.0,0.00013698,2]
[361254171,1747397432736,-450.0,0.00013698,2]
[361254173,1747397432746,-450.0,0.00013698,2]
[361254175,1747397432755,-598.33931887,0.00013698,2]
[361254177,1747397432765,-450.0,0.00013698,2]
[361254179,1747397432774,-450.0,0.00013698,2]
[361254181,1747397432784,-450.0,0.00013698,2]
[361254183,1747397432795,-450.0,0.00013698,2]
[361254185,1747397432805,-450.0,0.00013698,2]
[361254187,1747397432815,-450.0,0.00013698,2]
[361254189,1747397432824,-450.0,0.00013698,2]
[361254191,1747397432834,-486.08,0.00013698,2]
[361254193,1747397432843,-151.0,0.00013698,2]
[361254195,1747397432852,-185.268622,0.00013698,2]
[361254197,1747397432862,-450.0,0.00013698,2]
[361254199,1747397432871,-450.0,0.00013698,2]
[361254201,1747397432881,-400.0,0.00013698,2]
[361254203,1747397432890,-450.0,0.00013698,2]
[361254205,1747397432901,-532.06703405,0.00013698,2]
[361254207,1747397432916,-450.0,0.00013698,2]
[361254209,1747397432926,-450.0,0.00013698,2]
[361254211,1747397432935,-450.0,0.00013698,2]
[361254213,1747397432945,-450.0,0.00013698,2]
[361254215,1747397432955,-400.0,0.00013698,2]
[361254217,1747397432964,-450.0,0.00013698,2]
[361254219,1747397432973,-450.0,0.00013698,2]
[361254221,1747397432983,-2341.8,0.00013698,2]
[361254224,1747397432992,-450.0,0.00013698,2]
[361254226,1747397433002,-450.0,0.00013698,2]
[361254228,1747397433011,-561.64,0.00013698,2]
[361254230,1747397433021,-450.0,0.00013698,2]
[361254232,1747397433031,-1110.99,0.00013698,2]
[361254234,1747397433041,-2747.81,0.00013698,2]
[361254235,1747397433054,-450.0,0.00013698,2]
[361254237,1747397433064,-296.962064,0.00013698,2]
[361254240,1747397433075,-888.79,0.00013698,2]
[361254242,1747397433085,-450.0,0.00013698,2]
[361254244,1747397433095,-450.0,0.00013698,2]
[361254245,1747397433105,-450.0,0.00013698,2]
[361254248,1747397433116,-1965.1,0.00013698,2]
[361254249,1747397433127,-450.0,0.00013698,2]
[361254251,1747397433138,-450.0,0.00013698,2]
[361254254,1747397433150,-798.13,0.00013698,2]
[361254256,1747397433161,-450.0,0.00013698,2]
[361254257,1747397433172,-567.9,0.00013698,2]
[361254259,1747397433186,-450.0,0.00013698,2]
[361254261,1747397433196,-378.07723109,0.00013698,2]
[361254263,1747397433206,-450.0,0.00013698,2]
[361254265,1747397433216,-1296.92,0.00013698,2]
[361254267,1747397433226,-450.0,0.00013698,2]
[361254269,1747397433237,-450.0,0.00013698,2]
[361254271,1747397433246,-450.0,0.00013698,2]
[361254273,1747397433256,-450.0,0.00013698,2]
[361254275,1747397433266,-887.95,0.00013698,2]
[361254277,1747397433276,-450.0,0.00013698,2]
[361254279,1747397433287,-450.0,0.00013698,2]
[361254281,1747397433303,-450.0,0.00013698,2]
[361254283,1747397433314,-450.0,0.00013698,2]
[361254285,1747397433324,-450.0,0.00013698,2]
[361254287,1747397433333,-450.0,0.00013698,2]
[361254289,1747397433343,-450.0,0.00013698,2]
[361254291,1747397433353,-450.0,0.00013698,2]
[361254293,1747397433363,-450.0,0.00013698,2]
[361254295,1747397433376,-686.29,0.00013698,2]
[361254297,1747397433386,-450.0,0.00013698,2]
[361254299,1747397433396,-450.0,0.00013698,2]
[361254301,1747397433407,-450.0,0.00013698,2]
[361254303,1747397433417,-596.91,0.00013698,2]
[361254305,1747397433427,-450.0,0.00013698,2]
[361254307,1747397433437,-492.35,0.00013698,2]
[361254309,1747397433448,-511.42,0.00013698,2]
[361254311,1747397433459,-946.38,0.00013698,2]
[361254313,1747397433469,-450.0,0.00013698,2]
[361254315,1747397433479,-450.0,0.00013698,2]
[361254317,1747397433489,-450.0,0.00013698,2]
[361254319,1747397433499,-450.0,0.00013698,2]
[361254321,1747397433509,-450.0,0.00013698,2]
[361254323,1747397433519,-450.0,0.00013698,2]
[361254325,1747397433530,-450.0,0.00013698,2]
[361254327,1747397433540,-450.0,0.00013698,2]
[361254329,1747397433555,-471.51,0.00013698,2]
[361254331,1747397433565,-450.0,0.00013698,2]
[361254333,1747397433575,-450.0,0.00013698,2]
[361254335,1747397433585,-450.0,0.00013698,2]
[361254337,1747397433594,-400.0,0.00013698,2]
[361254339,1747397433603,-450.0,0.00013698,2]
[361254341,1747397433613,-450.0,0.00013698,2]
[361254343,1747397433622,-450.0,0.00013698,2]
[361254345,1747397433632,-864.0,0.00013698,2]
[361254347,1747397433642,-450.0,0.00013698,2]
[361254349,1747397433651,-450.0,0.00013698,2]
[361254351,1747397433661,-450.0,0.00013698,2]
[361254353,1747397433671,-309.39832824,0.00013698,2]
[361254355,1747397433680,-888.72860605,0.00013698,2]
[361254778,1747397438323,-450.0,0.00013698,2]
[361254780,1747397438333,-450.0,0.00013698,2]
[361254782,1747397438342,-535.78988996,0.00013698,2]
[361255278,1747397443501,-862.47730535,0.00013698,2]
[361255307,1747397446305,-482.7826615,0.00013561,14]
[361255444,1747398153799,1168.653397,0.00027397,120]
[361255449,1747398571314,166.62260402,7.5e-07,2]
[361255498,1747398632423,-5000.0,0.00012146,14]
[361255500,1747398632433,-300.0,0.00012269,2]
[361255502,1747398632443,-21827.0,0.0001227,2]
[361255504,1747398632457,-7512.8375554,0.00012279,2]
[361255506,1747398632466,-500.0,0.00012582,2]
[361255508,1747398632476,-500.0,0.00012582,2]
[361255510,1747398632486,-380.0,0.00012582,2]
[361255512,1747398632497,-500.0,0.00012582,2]
[361255514,1747398632506,-500.0,0.00012582,2]
[361255515,1747398632516,-500.0,0.00012582,2]
[361255517,1747398632528,-631.96628282,0.00012582,2]
[361255519,1747398632538,-512.00756795,0.00012582,2]
[361255521,1747398632547,-232.47529432,0.00012582,2]
[361255523,1747398632559,-15136.7709671,0.00012583,2]
[361255525,1747398632569,-610.9314939,0.00012695,2]
[361255527,1747398632578,-500.0,0.00012701,2]
[361255529,1747398632588,-251.95319285,0.000129,2]
[361255531,1747398632597,-251.95319278,0.000129,2]
[361255533,1747398632608,-251.95319278,0.00013173,2]
[361255535,1747398632618,-500.0,0.00013336,2]
[361255537,1747398632627,-152.0,0.00013445,2]
[361255539,1747398632637,-420.0,0.00013465,2]
[361255541,1747398632646,-251.95319278,0.00013518,2]
[361255543,1747398632655,-290.17058503,0.00013594,2]
[361255545,1747398632665,-50000.0,0.00013694,2]
[361255547,1747398632674,-151.0,0.00013694,2]
[361255549,1747398632683,-151.0,0.00013694,2]
[361255551,1747398632693,-151.0,0.00013694,2]
[361255553,1747398632702,-151.682975,0.00013694,2]
[361255555,1747398632711,-151.0,0.00013694,2]
[361255558,1747398632721,-151.0,0.00013694,2]
[361255559,1747398632730,-151.0,0.00013694,2]
[361255562,1747398632739,-151.354862,0.00013694,2]
[361255564,1747398632749,-151.0,0.00013694,2]
[361255566,1747398632758,-151.0,0.00013694,2]
[361255568,1747398632768,-577.76138839,0.00013697,2]
[361255569,1747398632777,-500.0,0.00013697,2]
[361255572,1747398632787,-500.0,0.00013697,2]
[361255573,1747398632797,-500.0,0.00013697,2]
[361255574,1747398632809,-464.18590657,0.00013697,2]
[361255575,1747398632818,-400.0,0.00013698,2]
[361255576,1747398632827,-151.0,0.00013698,2]
[361255577,1747398632837,-1000.0,0.00013698,2]
[361255578,1747398632846,-400.0,0.00013698,2]
[361255579,1747398632855,-151.0,0.00013698,2]
[361255580,1747398632866,-151.0,0.00013698,2]
[361255581,1747398632875,-192.873438,0.00013698,2]
[361255582,1747398632885,-192.873438,0.00013698,2]
[361255583,1747398632895,-450.0,0.00013698,2]
[361255584,1747398632904,-407.93113158,0.00013698,2]
[361255585,1747398632914,-450.0,0.00013698,2]
[361255586,1747398632924,-261.22663856,0.00013698,2]
[361255587,1747398632933,-441.25,0.00013698,2]
[361255588,1747398632942,-353.07328591,0.00013698,2]
[361255589,1747398632951,-400.0,0.00013698,2]
[361255590,1747398632961,-400.0,0.00013698,2]
[361255591,1747398632971,-450.0,0.00013698,2]
[361255592,1747398632980,-450.0,0.00013698,2]
[361255593,1747398632989,-400.0,0.00013698,2]
[361255594,1747398632998,-400.0,0.00013698,2]
[361255595,1747398633007,-450.0,0.00013698,2]
[361255596,1747398633017,-450.0,0.00013698,2]
[361255597,1747398633026,-450.0,0.00013698,2]
[361255598,1747398633036,-400.0,0.00013698,2]
[361255599,1747398633046,-151.0,0.00013698,2]
[361255600,1747398633056,-400.0,0.00013698,2]
[361255601,1747398633066,-400.0,0.00013698,2]
[361255602,1747398633076,-400.0,0.00013698,2]
[361255603,1747398633086,-400.0,0.00013698,2]
[361255604,1747398633097,-400.0,0.00013698,2]
[361255605,1747398633106,-484.84,0.00013698,2]
[361255606,1747398633117,-450.0,0.00013698,2]
[361255607,1747398633126,-450.0,0.00013698,2]
[361255608,1747398633137,-151.0,0.00013698,2]
[361255609,1747398633149,-450.0,0.00013698,2]
[361255610,1747398633161,-400.0,0.00013698,2]
[361255611,1747398633171,-447.03,0.00013698,2]
[361255612,1747398633181,-450.0,0.00013698,2]
[361255613,1747398633191,-400.0,0.00013698,2]
[361255614,1747398633201,-450.0,0.00013698,2]
[361255615,1747398633210,-151.0,0.00013698,2]
[361255616,1747398633220,-450.0,0.00013698,2]
[361255617,1747398633231,-151.697905,0.00013698,2]
[361255618,1747398633240,-521.08,0.00013698,2]
[361255619,1747398633251,-426.52,0.00013698,2]
[361255620,1747398633260,-400.0,0.00013698,2]
[361255621,1747398633271,-517.04,0.00013698,2]
[361255622,1747398633282,-450.0,0.00013698,2]
[361255623,1747398633293,-450.0,0.00013698,2]
[361255624,1747398633306,-450.0,0.00013698,2]
[361255625,1747398633317,-402.43800396,0.00013698,2]
[361255626,1747398633328,-400.0,0.00013698,2]
[361255627,1747398633338,-400.0,0.00013698,2]
[361255628,1747398633349,-400.0,0.00013698,2]
[361255629,1747398633359,-400.0,0.00013698,2]
[361255630,1747398633370,-400.0,0.00013698,2]
[361255631,1747398633381,-400.0,0.00013698,2]
[361255632,1747398633391,-400.06,0.00013698,2]
[361255633,1747398633402,-450.0,0.00013698,2]
[361255634,1747398633412,-212.95398784,0.00013698,2]
[361255635,1747398633422,-496.6,0.00013698,2]
[361255636,1747398633432,-400.0,0.00013698,2]
[361255637,1747398633442,-400.0,0.00013698,2]
[361255638,1747398633454,-450.0,0.00013698,2]
[361255639,1747398633464,-400.0,0.00013698,2]
[361255640,1747398633474,-400.0,0.00013698,2]
[361255641,1747398633485,-429.48,0.00013698,2]
[361255642,1747398633496,-450.0,0.00013698,2]
[361255643,1747398633506,-400.0,0.00013698,2]
[361255644,1747398633516,-406.61262494,0.00013698,2]
[361255645,1747398633527,-400.0,0.00013698,2]
[361255646,1747398633538,-400.0,0.00013698,2]
[361255647,1747398633548,-450.0,0.00013698,2]
[361255648,1747398633562,-400.0,0.00013698,2]
[361255649,1747398633571,-450.0,0.00013698,2]
[361255650,1747398633581,-450.0,0.00013698,2]
[361255651,1747398633591,-467.04301578,0.00013698,2]
[361255652,1747398633601,-400.0,0.00013698,2]
[361255653,1747398633611,-400.0,0.00013698,2]
[361255655,1747398633622,-400.0,0.00013698,2]
[361255657,1747398633634,-400.0,0.00013698,2]
[361255659,1747398633645,-400.0,0.00013698,2]
[361255661,1747398633655,-534.46591911,0.00013698,2]
[361255663,1747398633664,-450.0,0.00013698,2]
[361255665,1747398633674,-591.51,0.00013698,2]
[361255667,1747398633684,-400.0,0.00013698,2]
[361255669,1747398633694,-400.0,0.00013698,2]
[361255671,1747398633704,-400.0,0.00013698,2]
[361255673,1747398633713,-400.0,0.00013698,2]
[361255675,1747398633723,-400.0,0.00013698,2]
[361255676,1747398633732,-450.0,0.00013698,2]
[361255678,1747398633741,-404.26724191,0.00013698,2]
[361255680,1747398633751,-400.0,0.00013698,2]
[361255682,1747398633760,-450.0,0.00013698,2]
[361255691,1747398633952,-400.0,0.00013698,2]
[361255692,1747398633962,-400.0,0.00013698,2]
[361255693,1747398633972,-599.12,0.00013698,2]
[361255694,1747398633982,-151.0,0.00013698,2]
[361255695,1747398633991,-151.0,0.00013698,2]
[361255696,1747398634001,-245.405964,0.00013698,2]
[361255697,1747398634010,-400.0,0.00013698,2]
[361255698,1747398634020,-403.49,0.00013698,2]
[361255699,1747398634029,-400.0,0.00013698,2]
[361255700,1747398634039,-450.0,0.00013698,2]
[361255701,1747398634048,-422.18,0.00013698,2]
[361255702,1747398634058,-400.0,0.00013698,2]
[361255703,1747398634068,-400.0,0.00013698,2]
[361255704,1747398634077,-151.0,0.00013698,2]
[361255705,1747398634087,-400.0,0.00013698,2]
[361255706,1747398634095,-400.0,0.00013698,2]
[361255707,1747398634105,-400.0,0.00013698,2]
[361255708,1747398634115,-400.0,0.00013698,2]
[361255709,1747398634124,-400.0,0.00013698,2]
[361255710,1747398634134,-400.0,0.00013698,2]
[361255711,1747398634144,-450.0,0.00013698,2]
[361255712,1747398634156,-400.0,0.00013698,2]
[361255713,1747398634166,-450.0,0.00013698,2]
[361255714,1747398634176,-573.9,0.00013698,2]
[361255715,1747398634185,-151.0,0.00013698,2]
[361255716,1747398634195,-151.0,0.00013698,2]
[361255717,1747398634204,-400.0,0.00013698,2]
[361255718,1747398634215,-450.0,0.00013698,2]
[361255719,1747398634224,-153.407658,0.00013698,2]
[361255720,1747398634233,-400.0,0.00013698,2]
[361255721,1747398634243,-450.0,0.00013698,2]
[361255722,1747398634253,-450.0,0.00013698,2]
[361255723,1747398634263,-151.0,0.00013698,2]
[361255724,1747398634272,-178.336764,0.00013698,2]
[361255725,1747398634282,-491.41,0.00013698,2]